[Event "Targo Mures Open 2019"]
[Site "Targo Mures"]
[Date "2019.10.19"]
[Round "5.8"]
[White "Daianu, Cristian-Clement"]
[Black "Bilescu, Lucian-Wolfgang"]
[Result "1-0"]
[ECO "C05"]
[WhiteElo "2206"]
[BlackElo "1856"]
[Annotator "NA"]
[PlyCount "61"]
[EventDate "2019.03.02"]
[EventType "swiss"]
[EventCountry "ROU"]
[SourceTitle "playchess.com"]
[Source "ChessBase"]
[SourceQuality "1"]
[TimeControl "5400+30"]

1. e4 {[%emt 0:00:00]} e6 {[%emt 0:00:00]} 2. d4 {[%emt 0:00:00]} d5 {[%emt 0:00:00]} 3. Nd2 {[%emt 0:00:00]} Nf6 {[%emt 0:00:06]} 4. e5 {[%emt 0:00:00]} Nfd7 {[%emt 0:00:16]} 5. Bd3 {[%emt 0:00:03]} c5 {[%emt 0:00:10]} 6. c3 {[%emt 0:00:05]} Nc6 {[%emt 0:00:03]} 7. Ngf3 {[%emt 0:00:08]} g5 {[%emt 0:00:53]} 8. Nb3 {[%emt 0:29:04]} h6 {[%emt 0:20:50]} 9. Bc2 {[%emt 0:08:57]} Qc7 {[%emt 0:04:29]} 10. O-O {[%emt 0:01:12]} c4 {[%emt 0:14:45]} 11. Nbd2 {[%emt 0:00:37]} Bg7 {[%emt 0:01:33]} 12. b3 {[%emt 0:04:50]} b5 {[%emt 0:01:32]} 13. a4 {[%emt 0:00:03]} b4 {[%emt 0:01:35]} 14. bxc4 {[%emt 0:00:26]} Ne7 {[%emt 0:15:37]} 15. cxb4 {[%emt 0:03:12]} dxc4 {[%emt 0:01:16]} 16. Qe2 {[%emt 0:00:13]} Nb6 {[%emt 0:07:38]} 17. a5 {[%emt 0:02:34]} Nbd5 {[%emt 0:00:06]} 18. Qxc4 {[%emt 0:09:41]} Qxc4 {[%emt 0:05:59]} 19. Nxc4 {[%emt 0:00:07]} O-O {[%emt 0:00:06]} 20. b5 {[%emt 0:00:39]} Bd7 {[%emt 0:00:17]} 21. Nd6 {[%emt 0:02:15]} Rab8 {[%emt 0:10:28]} 22. Bd3 {[%emt 0:01:25]} Rfd8 {[%emt 0:06:40]} 23. Nd2 {[%emt 0:06:27]} Nc3 {[%emt 0:01:36]} 24. Ba3 {[%emt 0:00:29]} Ned5 {[%emt 0:00:33]} 25. Bc5 {[%emt 0:06:15]} Nxb5 {[%emt 0:01:30]} 26. a6 {[%emt 0:01:11]} Ndc3 {[%emt 0:03:18]} 27. N2e4 {[%emt 0:01:12]} Nxe4 {[%emt 0:00:59]} 28. Bxe4 {[%emt 0:00:11]} f5 29. Bb7 {[%emt 0:00:32]} Bf8 {[%emt 0:01:20]} 30. Rfb1 {[%emt 0:00:41]} Bxd6 {[%emt 0:00:30]} 31. exd6 {[%emt 0:00:02]} 1-0

[Event "Targo Mures Open 2019"]
[Site "Targo Mures"]
[Date "2019.10.19"]
[Round "5.9"]
[White "Illes, Sandor-Ferenc"]
[Black "Titu, Maiorescu-Dorin"]
[Result "0-1"]
[ECO "B01"]
[WhiteElo "1905"]
[BlackElo "2147"]
[Annotator "NA"]
[PlyCount "44"]
[EventDate "2019.03.02"]
[EventType "swiss"]
[EventCountry "ROU"]
[SourceTitle "playchess.com"]
[Source "ChessBase"]
[SourceQuality "1"]
[TimeControl "5400+30"]

1. e4 {[%emt 0:00:00]} d5 {[%emt 0:00:00]} 2. exd5 {[%emt 0:00:17]} Nf6 {[%emt 0:00:07]} 3. Nf3 {[%emt 0:00:47]} Nxd5 {[%emt 0:00:09]} 4. d4 {[%emt 0:00:38]} g6 {[%emt 0:00:18]} 5. c4 {[%emt 0:01:03]} Nb6 {[%emt 0:00:13]} 6. Nc3 {[%emt 0:00:41]} Bg7 {[%emt 0:00:12]} 7. c5 {[%emt 0:01:12]} Nd5 {[%emt 0:00:21]} 8. Bc4 {[%emt 0:00:53]} Nxc3 {[%emt 0:00:20]} 9. bxc3 {[%emt 0:00:42]} O-O {[%emt 0:00:12]} 10. O-O {[%emt 0:03:24]} b6 {[%emt 0:00:27]} 11. Ng5 {[%emt 0:17:32]} Bb7 {[%emt 0:11:17]} 12. Re1 {[%emt 0:11:37]} h6 {[%emt 0:23:23]} 13. Nxf7 {[%emt 0:42:20]} Rxf7 {[%emt 0:00:53]} 14. Qb3 {[%emt 0:00:10]} Qf8 {[%emt 0:02:15]} 15. cxb6 {[%emt 0:00:26]} axb6 {[%emt 0:00:35]} 16. Ba3 {[%emt 0:00:46]} Nc6 {[%emt 0:09:21]} 17. Re3 {[%emt 0:01:16]} Bf6 {[%emt 0:18:21]} 18. Rae1 {[%emt 0:02:14]} Re8 {[%emt 0:04:15]} 19. Rf3 {[%emt 0:08:05]} Kg7 {[%emt 0:05:27]} 20. Qb5 {[%emt 0:02:13]} Na7 {[%emt 0:03:05]} 21. Qd7 {[%emt 0:02:13]} Bxf3 {[%emt 0:02:47]} 22. Qxc7 {[%emt 0:00:53]} Rc8 {[%emt 0:01:46]} 0-1

[Event "Targo Mures Open 2019"]
[Site "Targo Mures"]
[Date "2019.10.19"]
[Round "5.10"]
[White "Chiriac, Daniel"]
[Black "Filip, Andrei"]
[Result "1/2-1/2"]
[ECO "A17"]
[WhiteElo "1836"]
[BlackElo "2047"]
[Annotator "NA"]
[PlyCount "67"]
[EventDate "2019.03.02"]
[EventType "swiss"]
[EventCountry "ROU"]
[SourceTitle "playchess.com"]
[Source "ChessBase"]
[SourceQuality "1"]
[TimeControl "5400+30"]

1. c4 {[%emt 0:00:00]} Nf6 {[%emt 0:00:00]} 2. Nc3 {[%emt 0:00:00]} e6 {[%emt 0:00:10]} 3. g3 {[%emt 0:00:00]} c5 {[%emt 0:02:55]} 4. Bg2 {[%emt 0:05:10]} Nc6 {[%emt 0:03:08]} 5. Nf3 {[%emt 0:01:02]} Be7 {[%emt 0:01:35]} 6. O-O {[%emt 0:00:38]} O-O {[%emt 0:00:24]} 7. b3 {[%emt 0:01:58]} d5 {[%emt 0:04:16]} 8. cxd5 {[%emt 0:03:05]} exd5 {[%emt 0:00:07]} 9. d4 {[%emt 0:06:51]} Ne4 {[%emt 0:17:19]} 10. Nxe4 dxe4 {[%emt 0:00:11]} 11. Ne5 {[%emt 0:23:07]} Nxd4 {[%emt 0:07:27]} 12. e3 {[%emt 0:01:32]} Nb5 {[%emt 0:07:01]} 13. Qxd8 Rxd8 {[%emt 0:00:45]} 14. Bxe4 {[%emt 0:06:13]} Bh3 {[%emt 0:03:49]} 15. Bxb7 {[%emt 0:13:17]} Bxf1 {[%emt 0:07:21]} 16. Bxa8 {[%emt 0:00:18]} Bh3 {[%emt 0:01:04]} 17. Bf3 {[%emt 0:00:37]} Bf6 {[%emt 0:06:25]} 18. Bb2 {[%emt 0:05:27]} Rd2 {[%emt 0:03:40]} 19. Rb1 {[%emt 0:00:13]} Nd6 {[%emt 0:03:26]} 20. e4 {[%emt 0:25:22]} h6 {[%emt 0:08:16]} 21. a4 {[%emt 0:01:39]} a6 {[%emt 0:02:20]} 22. Ba1 {[%emt 0:02:36]} Rc2 {[%emt 0:05:41]} 23. Re1 {[%emt 0:01:40]} Ra2 {[%emt 0:01:42]} 24. Rd1 {[%emt 0:00:43]} Ra3 {[%emt 0:05:34]} 25. Re1 {[%emt 0:00:31]} Rxb3 {[%emt 0:00:49]} 26. Bg2 {[%emt 0:00:28]} Bxg2 {[%emt 0:00:26]} 27. Kxg2 {[%emt 0:00:04]} Ra3 {[%emt 0:00:50]} 28. f4 {[%emt 0:00:56]} Rxa4 {[%emt 0:00:28]} 29. Kf3 {[%emt 0:00:04]} Ra3+ {[%emt 0:01:03]} 30. Kg4 {[%emt 0:00:32]} Nxe4 {[%emt 0:00:48]} 31. Rxe4 {[%emt 0:00:28]} Rxa1 {[%emt 0:00:08]} 32. Nd7 {[%emt 0:00:09]} Rc1 {[%emt 0:04:58]} 33. Re8+ {[%emt 0:00:18]} Kh7 {[%emt 0:00:05]} 34. Nf8+ {[%emt 0:00:12]} 1/2-1/2

[Event "Targo Mures Open 2019"]
[Site "Targo Mures"]
[Date "2019.10.19"]
[Round "5.11"]
[White "Rusan, Paul-Cristian"]
[Black "Porfireanu, Serban"]
[Result "1-0"]
[ECO "B07"]
[WhiteElo "2105"]
[BlackElo "1811"]
[Annotator "NA"]
[PlyCount "59"]
[EventDate "2019.03.02"]
[EventType "swiss"]
[EventCountry "ROU"]
[SourceTitle "playchess.com"]
[Source "ChessBase"]
[SourceQuality "1"]
[TimeControl "5400+30"]

1. e4 {[%emt 0:00:00]} d6 {[%emt 0:00:11]} 2. d4 {[%emt 0:00:00]} Nf6 {[%emt 0:00:22]} 3. Nc3 {[%emt 0:00:00]} g6 {[%emt 0:00:48]} 4. Be3 {[%emt 0:00:32]} Bg7 {[%emt 0:00:53]} 5. Qd2 {[%emt 0:00:11]} Ng4 {[%emt 0:02:32]} 6. Bg5 {[%emt 0:00:14]} h6 {[%emt 0:00:38]} 7. Bh4 {[%emt 0:00:11]} g5 {[%emt 0:03:22]} 8. Bg3 {[%emt 0:00:05]} e5 {[%emt 0:01:58]} 9. Nf3 {[%emt 0:07:18]} exd4 {[%emt 0:06:52]} 10. Nxd4 {[%emt 0:00:24]} Nc6 {[%emt 0:02:40]} 11. Bb5 {[%emt 0:07:25]} Bd7 {[%emt 0:00:12]} 12. Bxc6 {[%emt 0:00:09]} bxc6 {[%emt 0:00:23]} 13. h4 {[%emt 0:00:37]} Qe7 {[%emt 0:09:38]} 14. hxg5 {[%emt 0:02:36]} Qxg5 {[%emt 0:09:07]} 15. f4 {[%emt 0:07:38]} Qc5 {[%emt 0:04:30]} 16. O-O-O {[%emt 0:03:54]} O-O {[%emt 0:06:21]} 17. e5 {[%emt 0:09:14]} Rad8 {[%emt 0:06:24]} 18. Bh4 {[%emt 0:05:15]} Rb8 {[%emt 0:07:47]} 19. Rhe1 {[%emt 0:07:52]} Qb4 {[%emt 0:03:41]} 20. Nb3 {[%emt 0:00:58]} d5 {[%emt 0:02:03]} 21. Kb1 {[%emt 0:20:18]} Nxe5 {[%emt 0:01:41]} 22. Nxd5 {[%emt 0:02:06]} Qxd2 {[%emt 0:01:13]} 23. Ne7+ {[%emt 0:00:17]} Kh7 {[%emt 0:01:00]} 24. Rxd2 {[%emt 0:00:06]} Nc4 {[%emt 0:03:21]} 25. Rxd7 {[%emt 0:00:45]} Nxb2 {[%emt 0:00:36]} 26. Nxc6 {[%emt 0:04:05]} Rb6 {[%emt 0:02:46]} 27. Rxc7 {[%emt 0:04:09]} Na4 {[%emt 0:01:52]} 28. Ne5 {[%emt 0:02:03]} f6 {[%emt 0:01:37]} 29. Nd7 {[%emt 0:00:39]} Rf7 {[%emt 0:00:47]} 30. Nxb6 {[%emt 0:00:13]} 1-0

[Event "Targo Mures Open 2019"]
[Site "Targo Mures"]
[Date "2019.10.19"]
[Round "5.12"]
[White "Paraschiv, Paul-Alexandru"]
[Black "Badelita, Beniamin"]
[Result "1-0"]
[ECO "A80"]
[WhiteElo "2023"]
[BlackElo "1792"]
[Annotator "NA"]
[PlyCount "99"]
[EventDate "2019.03.02"]
[EventType "swiss"]
[EventCountry "ROU"]
[SourceTitle "playchess.com"]
[Source "ChessBase"]
[SourceQuality "1"]
[TimeControl "5400+30"]

1. d4 {[%emt 0:00:00]} f5 {[%emt 0:01:17]} 2. Bg5 {[%emt 0:00:17]} Nf6 {[%emt 0:00:10]} 3. Bxf6 {[%emt 0:00:05]} exf6 {[%emt 0:00:08]} 4. e3 {[%emt 0:00:03]} d5 {[%emt 0:08:15]} 5. c4 {[%emt 0:00:09]} Bb4+ {[%emt 0:05:52]} 6. Nc3 {[%emt 0:00:02]} O-O {[%emt 0:01:13]} 7. Qb3 {[%emt 0:00:50]} Bxc3+ {[%emt 0:02:49]} 8. bxc3 {[%emt 0:00:10]} c6 {[%emt 0:07:25]} 9. cxd5 {[%emt 0:00:53]} cxd5 {[%emt 0:00:09]} 10. Nh3 {[%emt 0:00:25]} Nc6 {[%emt 0:01:52]} 11. Nf4 {[%emt 0:00:06]} Ne7 {[%emt 0:00:13]} 12. g3 {[%emt 0:00:05]} g5 {[%emt 0:01:17]} 13. Nd3 {[%emt 0:00:19]} b6 {[%emt 0:02:17]} 14. h4 {[%emt 0:04:56]} Ba6 {[%emt 0:02:03]} 15. hxg5 {[%emt 0:01:10]} fxg5 {[%emt 0:04:27]} 16. Rh5 {[%emt 0:00:10]} Ng6 {[%emt 0:00:57]} 17. Nb4 {[%emt 0:00:44]} Bxf1 {[%emt 0:02:09]} 18. Kxf1 {[%emt 0:00:12]} f4 {[%emt 0:00:41]} 19. gxf4 {[%emt 0:03:12]} gxf4 {[%emt 0:00:37]} 20. Rxd5 {[%emt 0:00:31]} Qe8 {[%emt 0:03:32]} 21. Rd8+ {[%emt 0:00:21]} Qf7 {[%emt 0:00:12]} 22. Rxa8 {[%emt 0:00:05]} Rxa8 {[%emt 0:00:31]} 23. Ke2 {[%emt 0:01:32]} Rc8 {[%emt 0:01:13]} 24. Kd3 {[%emt 0:01:40]} b5 {[%emt 0:02:50]} 25. Qxf7+ {[%emt 0:00:17]} Kxf7 {[%emt 0:00:06]} 26. a4 {[%emt 0:00:02]} a5 {[%emt 0:00:44]} 27. Nd5 {[%emt 0:00:11]} fxe3 {[%emt 0:00:31]} 28. fxe3 {[%emt 0:01:42]} bxa4 29. Rxa4 {[%emt 0:00:02]} Ra8 {[%emt 0:02:22]} 30. c4 {[%emt 0:00:16]} h5 {[%emt 0:00:07]} 31. c5 {[%emt 0:00:47]} h4 {[%emt 0:00:21]} 32. c6 {[%emt 0:00:49]} Ne7 {[%emt 0:05:06]} 33. Nxe7 {[%emt 0:04:22]} Kxe7 {[%emt 0:00:54]} 34. d5 {[%emt 0:00:10]} Kd6 {[%emt 0:00:11]} 35. Kd4 {[%emt 0:00:44]} h3 {[%emt 0:00:19]} 36. e4 {[%emt 0:05:30]} h2 {[%emt 0:01:14]} 37. Ra1 {[%emt 0:00:08]} a4 {[%emt 0:00:13]} 38. e5+ {[%emt 0:08:22]} Kc7 {[%emt 0:01:06]} 39. Rb1 {[%emt 0:00:44]} a3 {[%emt 0:00:35]} 40. Rb7+ {[%emt 0:01:19]} Kc8 {[%emt 0:12:01]} 41. Rh7 {[%emt 0:00:10]} Ra4+ {[%emt 0:00:45]} 42. Kc5 {[%emt 0:00:23]} Kb8 {[%emt 0:07:06]} 43. Rh8+ {[%emt 0:01:16]} Ka7 {[%emt 0:00:28]} 44. c7 {[%emt 0:00:27]} h1=Q {[%emt 0:04:01]} 45. Rxh1 {[%emt 0:00:29]} Kb7 {[%emt 0:00:07]} 46. Kd6 {[%emt 0:00:46]} Rc4 {[%emt 0:01:34]} 47. Rb1+ {[%emt 0:00:16]} Ka7 {[%emt 0:00:24]} 48. Ra1 {[%emt 0:00:23]} Kb7 {[%emt 0:01:00]} 49. Rxa3 {[%emt 0:00:05]} Rxc7 {[%emt 0:00:07]} 50. Ra7+ {[%emt 0:00:03]} 1-0

[Event "Targo Mures Open 2019"]
[Site "Targo Mures"]
[Date "2019.10.20"]
[Round "6.1"]
[White "Istratescu, Andrei"]
[Black "Anton, Teodor"]
[Result "1/2-1/2"]
[ECO "D37"]
[WhiteElo "2564"]
[BlackElo "2445"]
[Annotator "ChessBase"]
[PlyCount "117"]
[EventDate "2019.03.02"]
[EventType "swiss"]
[EventCountry "ROU"]
[SourceTitle "playchess.com"]
[Source "ChessBase"]
[SourceQuality "1"]
[TimeControl "5400+30"]

1. d4 {[%emt 0:00:00]} Nf6 {[%emt 0:00:00]} 2. c4 {[%emt 0:00:04]} e6 {[%emt 0:00:00]} 3. Nf3 {[%emt 0:00:04]} d5 {[%emt 0:00:36]} 4. Nc3 {[%emt 0:01:16]} Be7 {[%emt 0:00:38]} 5. Bf4 {[%emt 0:00:46]} O-O {[%emt 0:00:27]} 6. e3 {[%emt 0:00:02]} Nbd7 {[%emt 0:00:22]} 7. c5 {[%emt 0:01:18]} c6 {[%emt 0:00:14]} 8. h3 {[%emt 0:01:33]} b6 {[%emt 0:00:51]} 9. b4 {[%emt 0:00:51]} a5 {[%emt 0:00:14]} 10. a3 {[%emt 0:00:10]} Bb7 {[%emt 0:04:14]} 11. Bd3 {[%emt 0:04:11]} Qc8 {[%emt 0:00:16]} 12. O-O {[%emt 0:02:27]} Ba6 {[%emt 0:00:39]} 13. Rb1 {[%emt 0:04:25]} Bxd3 {[%emt 0:02:03]} 14. Qxd3 {[%emt 0:00:11]} axb4 {[%emt 0:00:12]} 15. axb4 {[%emt 0:00:04]} Qb7 {[%emt 0:00:51]} 16. Qc2 {[%emt 0:04:26]} Ra3 {[%emt 0:03:17]} 17. Nd2 {[%emt 0:07:33]} b5 {[%emt 0:08:14]} 18. Nb3 {[%emt 0:01:59]} Raa8 {[%emt 0:07:18]} 19. Na5 {[%emt 0:00:43]} Qc8 {[%emt 0:00:15]} 20. Ra1 {[%emt 0:00:03]} Bd8 {[%emt 0:03:42]} 21. Nb3 {[%emt 0:01:34]} Rxa1 {[%emt 0:01:24]} 22. Rxa1 {[%emt 0:00:06]} Bc7 {[%emt 0:00:15]} 23. Bxc7 {[%emt 0:01:57]} Qxc7 {[%emt 0:00:08]} 24. f4 {[%emt 0:00:07]} Rc8 {[%emt 0:05:35]} 25. Nd2 {[%emt 0:08:23]} g6 {[%emt 0:08:18]} 26. Ra6 {[%emt 0:03:56]} Kg7 {[%emt 0:03:06]} 27. Qa2 {[%emt 0:01:22]} Rb8 {[%emt 0:00:17]} 28. Qa5 {[%emt 0:01:36]} Rb7 {[%emt 0:06:31]} 29. Qxc7 {[%emt 0:00:48]} Rxc7 {[%emt 0:00:04]} 30. Kf2 {[%emt 0:02:28]} Ng8 {[%emt 0:05:09]} 31. g4 {[%emt 0:05:25]} f6 {[%emt 0:06:54]} 32. Nf3 {[%emt 0:00:44]} Ne7 {[%emt 0:02:01]} 33. g5 {[%emt 0:01:41]} fxg5 {[%emt 0:01:10]} 34. Nxg5 {[%emt 0:00:16]} Nf8 {[%emt 0:01:02]} 35. Nb1 {[%emt 0:00:52]} h6 {[%emt 0:00:55]} 36. Nf3 {[%emt 0:00:09]} Nd7 {[%emt 0:00:23]} 37. Nbd2 {[%emt 0:00:15]} Kf6 {[%emt 0:02:49]} 38. Ne5 {[%emt 0:00:26]} Nxe5 {[%emt 0:00:53]} 39. dxe5+ {[%emt 0:00:57]} Kf7 {[%emt 0:00:44]} 40. Nf3 {[%emt 0:06:09]} Nf5 {[%emt 0:00:43]} 41. Ra8 {[%emt 0:00:12]} Kg7 {[%emt 0:00:59]} 42. Ke2 {[%emt 0:06:43]} Kf7 {[%emt 0:01:37]} 43. Kd3 {[%emt 0:00:07]} Kg7 {[%emt 0:01:18]} 44. Nh2 {[%emt 0:01:07]} Ng3 {[%emt 0:05:05]} 45. Ng4 {[%emt 0:03:31]} Ne4 {[%emt 0:00:21]} 46. h4 {[%emt 0:00:24]} Rf7 {[%emt 0:04:20]} 47. Ra6 {[%emt 0:01:15]} Rc7 {[%emt 0:00:21]} 48. Kc2 {[%emt 0:04:51]} Kf8 {[%emt 0:04:55]} 49. Kd3 {[%emt 0:04:04]} Kg7 {[%emt 0:00:04]} 50. Kd4 {[%emt 0:01:37]} g5 {[%emt 0:07:50]} 51. fxg5 {[%emt 0:01:00]} hxg5 {[%emt 0:00:03]} 52. h5 {[%emt 0:00:02]} Ng3 {[%emt 0:00:54]} 53. Nf6 {[%emt 0:00:20]} Kh6 {[%emt 0:01:34]} 54. Ra8 {[%emt 0:00:09]} Nf5+ {[%emt 0:00:14]} 55. Kd3 {[%emt 0:00:18]} g4 {[%emt 0:00:10]} 56. Nxg4+ {[%emt 0:10:38]} Kxh5 {[%emt 0:00:07]} 57. Nf6+ {[%emt 0:00:06]} Kg6 {[%emt 0:00:25]} 58. Rg8+ {[%emt 0:03:46]} Rg7 {[%emt 0:00:30]} 59. Rxg7+ {[%emt 0:01:40]} 1/2-1/2

[Event "Targo Mures Open 2019"]
[Site "Targo Mures"]
[Date "2019.10.20"]
[Round "6.2"]
[White "Ognean, Mihnea-Ionut"]
[Black "Manolache, Marius"]
[Result "0-1"]
[ECO "B09"]
[WhiteElo "2285"]
[BlackElo "2548"]
[Annotator "ChessBase"]
[PlyCount "144"]
[EventDate "2019.03.02"]
[EventType "swiss"]
[EventCountry "ROU"]
[SourceTitle "playchess.com"]
[Source "ChessBase"]
[SourceQuality "1"]
[TimeControl "5400+30"]

1. d4 {[%emt 0:00:00]} d6 {[%emt 0:02:01]} 2. e4 {[%emt 0:00:00]} Nf6 {[%emt 0:00:17]} 3. Nc3 {[%emt 0:00:00]} g6 {[%emt 0:00:05]} 4. f4 {[%emt 0:00:00]} Bg7 {[%emt 0:00:07]} 5. Nf3 {[%emt 0:00:03]} O-O {[%emt 0:00:09]} 6. e5 {[%emt 0:00:05]} dxe5 {[%emt 0:03:16]} 7. fxe5 {[%emt 0:00:05]} Nh5 {[%emt 0:01:07]} 8. Bc4 {[%emt 0:02:15]} c5 {[%emt 0:00:16]} 9. dxc5 {[%emt 0:00:27]} Qxd1+ {[%emt 0:00:41]} 10. Nxd1 {[%emt 0:00:04]} Nc6 {[%emt 0:00:10]} 11. e6 {[%emt 0:00:42]} Bxe6 {[%emt 0:07:20]} 12. Bxe6 {[%emt 0:00:05]} fxe6 {[%emt 0:00:03]} 13. O-O {[%emt 0:05:46]} Rad8 {[%emt 0:04:14]} 14. c3 {[%emt 0:07:48]} Ne5 {[%emt 0:26:56]} 15. Be3 {[%emt 0:04:54]} Nf4 {[%emt 0:09:32]} 16. g3 {[%emt 0:05:51]} Nxf3+ {[%emt 0:09:48]} 17. Rxf3 {[%emt 0:00:06]} Nd3 {[%emt 0:00:25]} 18. Rxf8+ {[%emt 0:04:23]} Kxf8 {[%emt 0:00:08]} 19. Kf1 {[%emt 0:01:53]} Rc8 {[%emt 0:00:27]} 20. c6 {[%emt 0:02:27]} b6 {[%emt 0:05:00]} 21. a4 {[%emt 0:00:11]} Rxc6 {[%emt 0:06:29]} 22. a5 {[%emt 0:00:15]} Ne5 {[%emt 0:00:37]} 23. axb6 {[%emt 0:00:57]} axb6 {[%emt 0:00:01]} 24. Ra7 {[%emt 0:12:00]} Bf6 {[%emt 0:04:31]} 25. Ke2 {[%emt 0:01:31]} Nc4 {[%emt 0:00:11]} 26. Bc1 {[%emt 0:04:55]} h5 {[%emt 0:01:57]} 27. Nf2 {[%emt 0:00:59]} b5 {[%emt 0:00:53]} 28. Nd3 {[%emt 0:06:26]} Rc8 {[%emt 0:01:26]} 29. h3 {[%emt 0:03:52]} Kf7 {[%emt 0:02:01]} 30. Nf2 {[%emt 0:05:27]} Nd6 {[%emt 0:00:53]} 31. Be3 {[%emt 0:04:21]} g5 {[%emt 0:01:58]} 32. g4 {[%emt 0:05:49]} hxg4 {[%emt 0:01:16]} 33. hxg4 {[%emt 0:00:04]} Rc4 {[%emt 0:03:36]} 34. Bd2 {[%emt 0:03:30]} Rc8 {[%emt 0:01:14]} 35. Kf3 {[%emt 0:04:18]} Nc4 {[%emt 0:02:08]} 36. Bc1 {[%emt 0:00:35]} b4 {[%emt 0:00:12]} 37. Ne4 {[%emt 0:00:25]} Kg6 {[%emt 0:01:29]} 38. Kg3 {[%emt 0:02:38]} bxc3 {[%emt 0:00:16]} 39. bxc3 {[%emt 0:00:09]} Nd6 {[%emt 0:00:30]} 40. Ra4 {[%emt 0:02:30]} Bxc3 {[%emt 0:02:17]} 41. Be3 {[%emt 0:02:04]} Be5+ {[%emt 0:00:42]} 42. Kf3 {[%emt 0:00:18]} Rf8+ {[%emt 0:00:38]} 43. Kg2 {[%emt 0:00:08]} Bf4 {[%emt 0:00:25]} 44. Bf2 {[%emt 0:00:08]} Nxe4 {[%emt 0:00:33]} 45. Rxe4 {[%emt 0:00:04]} Kf6 {[%emt 0:00:19]} 46. Ra4 {[%emt 0:00:22]} Rd8 {[%emt 0:00:13]} 47. Kf3 {[%emt 0:01:26]} Rd3+ {[%emt 0:00:15]} 48. Ke4 {[%emt 0:00:32]} Rd2 {[%emt 0:00:17]} 49. Kf3 {[%emt 0:00:05]} e5 {[%emt 0:00:08]} 50. Ra6+ {[%emt 0:00:16]} Kf7 {[%emt 0:00:15]} 51. Ra4 {[%emt 0:00:24]} Rb2 {[%emt 0:00:10]} 52. Rc4 {[%emt 0:01:20]} Ra2 {[%emt 0:00:20]} 53. Rb4 {[%emt 0:00:17]} Ke6 {[%emt 0:00:09]} 54. Rc4 {[%emt 0:00:55]} Kd6 {[%emt 0:00:24]} 55. Bb6 {[%emt 0:04:43]} Ra3+ {[%emt 0:00:17]} 56. Ke4 {[%emt 0:00:05]} Rg3 {[%emt 0:00:34]} 57. Bf2 {[%emt 0:00:08]} Rb3 {[%emt 0:02:17]} 58. Ra4 {[%emt 0:00:07]} Rb2 {[%emt 0:00:32]} 59. Kf3 {[%emt 0:00:26]} e6 {[%emt 0:00:39]} 60. Bg1 {[%emt 0:02:19]} Bd2 {[%emt 0:01:41]} 61. Ke4 {[%emt 0:01:02]} Rb1 {[%emt 0:01:03]} 62. Bf2 {[%emt 0:00:15]} Rf1 {[%emt 0:00:28]} 63. Bg3 {[%emt 0:00:24]} Bf4 {[%emt 0:00:10]} 64. Ra6+ {[%emt 0:01:29]} Ke7 {[%emt 0:00:10]} 65. Ra3 {[%emt 0:00:22]} Kf6 {[%emt 0:00:27]} 66. Ra8 {[%emt 0:01:01]} Rb1 {[%emt 0:01:17]} 67. Bf2 {[%emt 0:01:10]} Rb4+ {[%emt 0:00:07]} 68. Kd3 {[%emt 0:00:10]} e4+ {[%emt 0:00:06]} 69. Kc3 {[%emt 0:00:05]} Rb5 {[%emt 0:00:05]} 70. Kd4 {[%emt 0:00:46]} e3 {[%emt 0:00:17]} 71. Be1 {[%emt 0:00:54]} Rb1 {[%emt 0:00:37]} 72. Bc3 {[%emt 0:00:59]} Be5+ {[%emt 0:00:08]} 0-1

[Event "Targo Mures Open 2019"]
[Site "Targo Mures"]
[Date "2019.10.20"]
[Round "6.3"]
[White "Jianu, Vlad-Cristian"]
[Black "Filip, Lucian-Ioan"]
[Result "1/2-1/2"]
[ECO "E12"]
[WhiteElo "2529"]
[BlackElo "2418"]
[Annotator "ChessBase"]
[PlyCount "31"]
[EventDate "2019.03.02"]
[EventType "swiss"]
[EventCountry "ROU"]
[SourceTitle "playchess.com"]
[Source "ChessBase"]
[SourceQuality "1"]
[TimeControl "5400+30"]

1. d4 {[%emt 0:00:00]} e6 {[%emt 0:03:01]} 2. c4 {[%emt 0:00:00]} Nf6 {[%emt 0:00:19]} 3. Nf3 {[%emt 0:00:00]} b6 {[%emt 0:00:13]} 4. a3 {[%emt 0:00:03]} Bb7 {[%emt 0:00:10]} 5. Nc3 {[%emt 0:00:12]} d5 {[%emt 0:00:06]} 6. cxd5 {[%emt 0:00:06]} Nxd5 {[%emt 0:00:03]} 7. Qc2 {[%emt 0:00:12]} Be7 {[%emt 0:00:59]} 8. e4 {[%emt 0:00:06]} Nxc3 {[%emt 0:00:09]} 9. bxc3 {[%emt 0:00:04]} O-O {[%emt 0:02:39]} 10. Bd3 {[%emt 0:00:15]} c5 {[%emt 0:00:05]} 11. O-O {[%emt 0:00:20]} Qc7 {[%emt 0:01:45]} 12. Qe2 {[%emt 0:00:16]} Rd8 {[%emt 0:08:58]} 13. Rd1 {[%emt 0:08:57]} Bf6 {[%emt 0:10:37]} 14. Be3 {[%emt 0:24:18]} Nc6 {[%emt 0:23:18]} 15. Rac1 {[%emt 0:29:37]} Na5 {[%emt 0:01:41]} 16. Rb1 {[%emt 0:01:32]} 1/2-1/2